[Event "Titled Tuesday Blitz February 21 Early 2023"]
[White "Lymar, Vladislav"]
[Black "Boruchovsky, Avital"]
[WhiteFideId "14162180"]
[BlackFideId "2800055"]
[WhiteElo "2119"]
[BlackElo "2539"]
[Result "0-1"]
[Round "06"]
[TimeControl "180+2"]
[Date "2023.02.21"]
[WhiteClock "0:00:04"]
[BlackClock "0:01:02"]

1. e4 {[%clk 0:03:00]}  e5 {[%clk 0:02:54]} 2. Nf3 {[%clk 0:02:59]}  Nc6 {[%clk 0:02:53]} 3. g3 {[%clk 0:02:59]}  Nf6 {[%clk 0:02:52]} 4. d3 {[%clk 0:02:59]}  d5 {[%clk 0:02:52]} 5. exd5 {[%clk 0:02:59]}  Nxd5 {[%clk 0:02:53]} 6. Bg2 {[%clk 0:03:00]}  f6 {[%clk 0:02:52]} 7. O-O {[%clk 0:02:59]}  Be7 {[%clk 0:02:52]} 8. d4 {[%clk 0:02:57]}  e4 {[%clk 0:02:51]} 9. Nfd2 {[%clk 0:02:55]}  e3 {[%clk 0:02:46]} 10. Bxd5 {[%clk 0:02:50]}  exf2+ {[%clk 0:02:37]} 11. Rxf2 {[%clk 0:02:49]}  Qxd5 {[%clk 0:02:37]} 12. c3 {[%clk 0:02:49]}  O-O {[%clk 0:02:28]} 13. Qb3 {[%clk 0:02:48]}  Be6 {[%clk 0:02:23]} 14. Qxd5 {[%clk 0:02:48]}  Bxd5 {[%clk 0:02:24]} 15. Nf1 {[%clk 0:02:48]}  Rfe8 {[%clk 0:02:22]} 16. Bf4 {[%clk 0:02:47]}  Rac8 {[%clk 0:02:15]} 17. Nbd2 {[%clk 0:02:44]}  Bf8 {[%clk 0:02:14]} 18. b3 {[%clk 0:02:37]}  Bf7 {[%clk 0:02:10]} 19. Nf3 {[%clk 0:02:29]}  b5 {[%clk 0:02:05]} 20. Rc1 {[%clk 0:02:11]}  Ba3 {[%clk 0:02:03]} 21. Rcc2 {[%clk 0:02:09]}  Bg6 {[%clk 0:01:56]} 22. Rce2 {[%clk 0:02:07]}  Ne7 {[%clk 0:01:56]} 23. c4 {[%clk 0:01:55]}  c6 {[%clk 0:01:45]} 24. Re1 {[%clk 0:01:38]}  Nf5 {[%clk 0:01:41]} 25. Rfe2 {[%clk 0:01:30]}  Rxe2 {[%clk 0:01:40]} 26. Rxe2 {[%clk 0:01:31]}  Bh5 {[%clk 0:01:39]} 27. N1d2 {[%clk 0:01:27]}  bxc4 {[%clk 0:01:38]} 28. bxc4 {[%clk 0:01:25]}  Bb4 {[%clk 0:01:38]} 29. Re4 {[%clk 0:01:21]}  Rd8 {[%clk 0:01:33]} 30. Bc7 {[%clk 0:00:27]}  Rd7 {[%clk 0:01:32]} 31. g4 {[%clk 0:00:27]}  Bxg4 {[%clk 0:01:27]} 32. Rxg4 {[%clk 0:00:28]}  Rxc7 {[%clk 0:01:27]} 33. c5 {[%clk 0:00:23]}  Rd7 {[%clk 0:01:25]} 34. Nb3 {[%clk 0:00:21]}  g5 {[%clk 0:01:22]} 35. Re4 {[%clk 0:00:20]}  Re7 {[%clk 0:01:18]} 36. Rxe7 {[%clk 0:00:06]}  Nxe7 {[%clk 0:01:18]} 37. Kf2 {[%clk 0:00:07]}  Kf7 {[%clk 0:01:18]} 38. Ke3 {[%clk 0:00:07]}  Ke6 {[%clk 0:01:19]} 39. Kd3 {[%clk 0:00:07]}  g4 {[%clk 0:01:18]} 40. Ng1 {[%clk 0:00:05]}  Nd5 {[%clk 0:01:15]} 41. Ne2 {[%clk 0:00:05]}  f5 {[%clk 0:01:15]} 42. Nbc1 {[%clk 0:00:02]}  h5 {[%clk 0:01:12]} 43. Ng1 {[%clk 0:00:02]}  h4 {[%clk 0:01:09]} 44. Kc4 {[%clk 0:00:03]}  Ba5 {[%clk 0:01:09]} 45. Nd3 {[%clk 0:00:03]}  Bc7 {[%clk 0:01:09]} 46. h3 {[%clk 0:00:04]}  Bh2 {[%clk 0:01:04]} 47. hxg4 {[%clk 0:00:03]}  Bxg1 {[%clk 0:01:03]} 48. gxf5+ {[%clk 0:00:04]}  Kxf5 {[%clk 0:01:03]} 49. Ne5 {[%clk 0:00:04]}  h3 {[%clk 0:01:03]} 50. Nxc6 {[%clk 0:00:02]}  Ne3+ {[%clk 0:01:03]} 51. Kd3 {[%clk 0:00:02]}  h2 {[%clk 0:01:04]} 52. Ne7+ {[%clk 0:00:03]}  Ke6 {[%clk 0:01:03]} 53. Ng6 {[%clk 0:00:03]}  h1=Q {[%clk 0:01:02]} 54. Nf4+ {[%clk 0:00:04]} 0-1


[Site "https://www.chess.com"]

[Event "Titled Tuesday Blitz February 21 Early 2023"]
[White "Karttunen, Mika"]
[Black "Ahmadzada, Ahmad"]
[WhiteFideId "502081"]
[BlackFideId "13413007"]
[WhiteElo "2490"]
[BlackElo "2488"]
[Result "0-1"]
[Round "06"]
[TimeControl "180+2"]
[Date "2023.02.21"]
[WhiteClock "0:00:01"]
[BlackClock "0:00:20"]

1. c4 {[%clk 0:03:00]}  g6 {[%clk 0:02:57]} 2. Nf3 {[%clk 0:03:00]}  Bg7 {[%clk 0:02:57]} 3. g3 {[%clk 0:03:00]}  Nf6 {[%clk 0:02:58]} 4. Bg2 {[%clk 0:03:00]}  O-O {[%clk 0:02:59]} 5. Nc3 {[%clk 0:02:59]}  c5 {[%clk 0:02:58]} 6. O-O {[%clk 0:02:59]}  Nc6 {[%clk 0:02:58]} 7. d3 {[%clk 0:02:59]}  b6 {[%clk 0:02:57]} 8. Ne5 {[%clk 0:02:40]}  Bb7 {[%clk 0:02:48]} 9. Nxc6 {[%clk 0:02:35]}  Bxc6 {[%clk 0:02:49]} 10. Bxc6 {[%clk 0:02:22]}  dxc6 {[%clk 0:02:50]} 11. f3 {[%clk 0:02:21]}  Nd7 {[%clk 0:02:46]} 12. Kg2 {[%clk 0:02:19]}  f5 {[%clk 0:02:44]} 13. h4 {[%clk 0:02:17]}  h6 {[%clk 0:02:39]} 14. Bd2 {[%clk 0:02:07]}  a6 {[%clk 0:02:36]} 15. Rb1 {[%clk 0:02:03]}  b5 {[%clk 0:02:35]} 16. b3 {[%clk 0:01:58]}  Kh7 {[%clk 0:02:36]} 17. Qc2 {[%clk 0:01:54]}  e5 {[%clk 0:02:36]} 18. e4 {[%clk 0:01:49]}  f4 {[%clk 0:02:33]} 19. Rh1 {[%clk 0:01:37]}  fxg3 {[%clk 0:02:31]} 20. Ne2 {[%clk 0:01:30]}  Nf6 {[%clk 0:02:18]} 21. Nxg3 {[%clk 0:01:26]}  Ra7 {[%clk 0:02:19]} 22. Be3 {[%clk 0:01:13]}  Rd7 {[%clk 0:01:53]} 23. Rbd1 {[%clk 0:01:09]}  h5 {[%clk 0:01:44]} 24. Bxc5 {[%clk 0:01:07]}  Rff7 {[%clk 0:01:45]} 25. Be3 {[%clk 0:00:57]}  Ne8 {[%clk 0:01:43]} 26. Ne2 {[%clk 0:00:46]}  Nc7 {[%clk 0:01:41]} 27. Rh3 {[%clk 0:00:22]}  Ne6 {[%clk 0:01:41]} 28. Bf2 {[%clk 0:00:08]}  Rd6 {[%clk 0:01:33]} 29. Be3 {[%clk 0:00:08]}  Rfd7 {[%clk 0:01:31]} 30. Nc1 {[%clk 0:00:07]}  Bh6 {[%clk 0:01:32]} 31. Bxh6 {[%clk 0:00:06]}  Kxh6 {[%clk 0:01:32]} 32. Kh1 {[%clk 0:00:06]}  Nf4 {[%clk 0:01:27]} 33. Rh2 {[%clk 0:00:07]}  g5 {[%clk 0:01:28]} 34. hxg5+ {[%clk 0:00:06]}  Qxg5 {[%clk 0:01:28]} 35. Rg1 {[%clk 0:00:07]}  Qf6 {[%clk 0:01:23]} 36. c5 {[%clk 0:00:07]}  Rd4 {[%clk 0:01:19]} 37. Qd2 {[%clk 0:00:08]}  Rg7 {[%clk 0:01:15]} 38. Rxg7 {[%clk 0:00:07]}  Qxg7 {[%clk 0:01:12]} 39. Qe3 {[%clk 0:00:07]}  Qg3 {[%clk 0:01:10]} 40. a3 {[%clk 0:00:05]}  Kg5 {[%clk 0:00:44]} 41. Rf2 {[%clk 0:00:05]}  h4 {[%clk 0:00:37]} 42. Ne2 {[%clk 0:00:03]}  Qh3+ {[%clk 0:00:25]} 43. Rh2 {[%clk 0:00:01]}  Qf1+ {[%clk 0:00:24]} 44. Ng1 {[%clk 0:00:01]}  Rxd3 {[%clk 0:00:20]} 0-1


[Site "https://www.chess.com"]

[Event "Titled Tuesday Blitz February 21 Early 2023"]
[White "Talibov, Shiroghlan"]
[Black "Alice, Mateus Felizardo Viageiro"]
[WhiteFideId "13429078"]
[BlackFideId "14800047"]
[WhiteElo "2359"]
[BlackElo "2202"]
[Result "1-0"]
[Round "06"]
[TimeControl "180+2"]
[Date "2023.02.21"]
[WhiteClock "0:00:10"]
[BlackClock "0:00:15"]

1. d4 {[%clk 0:03:00]}  Nf6 {[%clk 0:02:57]} 2. c4 {[%clk 0:02:57]}  e6 {[%clk 0:02:57]} 3. Nf3 {[%clk 0:02:55]}  d5 {[%clk 0:02:56]} 4. Bf4 {[%clk 0:02:53]}  a6 {[%clk 0:02:54]} 5. c5 {[%clk 0:02:50]}  a5 {[%clk 0:02:51]} 6. Nc3 {[%clk 0:02:49]}  Be7 {[%clk 0:02:47]} 7. e3 {[%clk 0:02:48]}  O-O {[%clk 0:02:47]} 8. Bd3 {[%clk 0:02:47]}  b6 {[%clk 0:02:47]} 9. cxb6 {[%clk 0:02:46]}  cxb6 {[%clk 0:02:48]} 10. Ne5 {[%clk 0:02:45]}  Bb7 {[%clk 0:02:45]} 11. Rc1 {[%clk 0:02:40]}  Nc6 {[%clk 0:02:44]} 12. O-O {[%clk 0:02:33]}  Rc8 {[%clk 0:02:42]} 13. Nb5 {[%clk 0:02:32]}  Nb4 {[%clk 0:02:35]} 14. a3 {[%clk 0:01:54]}  Nxd3 {[%clk 0:02:29]} 15. Qxd3 {[%clk 0:01:55]}  Ba6 {[%clk 0:01:08]} 16. a4 {[%clk 0:01:46]}  Ne4 {[%clk 0:00:35]} 17. f3 {[%clk 0:01:38]}  Bxb5 {[%clk 0:00:18]} 18. axb5 {[%clk 0:01:36]}  Nd6 {[%clk 0:00:17]} 19. Rc6 {[%clk 0:01:34]}  f6 {[%clk 0:00:12]} 20. Rfc1 {[%clk 0:01:31]}  fxe5 {[%clk 0:00:11]} 21. Rxc8 {[%clk 0:00:41]}  Nxc8 {[%clk 0:00:12]} 22. Bxe5 {[%clk 0:00:41]}  Bd6 {[%clk 0:00:12]} 23. Rc6 {[%clk 0:00:28]}  Bxe5 {[%clk 0:00:11]} 24. dxe5 {[%clk 0:00:29]}  Qe7 {[%clk 0:00:11]} 25. Qc3 {[%clk 0:00:25]}  Qd8 {[%clk 0:00:09]} 26. Rxe6 {[%clk 0:00:23]}  Ne7 {[%clk 0:00:08]} 27. Rd6 {[%clk 0:00:20]}  Qb8 {[%clk 0:00:07]} 28. Qd4 {[%clk 0:00:17]}  Nf5 {[%clk 0:00:06]} 29. Qxd5+ {[%clk 0:00:17]}  Kh8 {[%clk 0:00:07]} 30. Rd7 {[%clk 0:00:13]}  Nxe3 {[%clk 0:00:07]} 31. Qd4 {[%clk 0:00:12]}  Nf5 {[%clk 0:00:07]} 32. Qe4 {[%clk 0:00:12]}  Qc8 {[%clk 0:00:06]} 33. Qc6 {[%clk 0:00:11]}  Qe8 {[%clk 0:00:05]} 34. e6 {[%clk 0:00:10]}  Qg6 {[%clk 0:00:05]} 35. e7 {[%clk 0:00:09]}  Nxe7 {[%clk 0:00:05]} 36. Rxe7 {[%clk 0:00:09]}  Qb1+ {[%clk 0:00:05]} 37. Kf2 {[%clk 0:00:09]}  Qxb2+ {[%clk 0:00:06]} 38. Kg3 {[%clk 0:00:06]}  Rg8 {[%clk 0:00:07]} 39. Re8 {[%clk 0:00:03]}  Qf6 {[%clk 0:00:06]} 40. Rxg8+ {[%clk 0:00:02]}  Kxg8 {[%clk 0:00:07]} 41. Qe8+ {[%clk 0:00:03]}  Qf8 {[%clk 0:00:07]} 42. Qe6+ {[%clk 0:00:03]}  Kh8 {[%clk 0:00:07]} 43. Qxb6 {[%clk 0:00:04]}  a4 {[%clk 0:00:07]} 44. Qa7 {[%clk 0:00:04]}  a3 {[%clk 0:00:07]} 45. b6 {[%clk 0:00:04]}  Qd6+ {[%clk 0:00:07]} 46. Kh3 {[%clk 0:00:04]}  h5 {[%clk 0:00:08]} 47. Qa8+ {[%clk 0:00:03]}  Kh7 {[%clk 0:00:07]} 48. Qe4+ {[%clk 0:00:04]}  g6 {[%clk 0:00:06]} 49. Qa4 {[%clk 0:00:02]}  Qe6+ {[%clk 0:00:07]} 50. Kg3 {[%clk 0:00:02]}  a2 {[%clk 0:00:07]} 51. b7 {[%clk 0:00:01]}  Qe5+ {[%clk 0:00:08]} 52. Kf2 {[%clk 0:00:02]}  a1=Q {[%clk 0:00:09]} 53. Qxa1 {[%clk 0:00:02]}  Qxa1 {[%clk 0:00:08]} 54. b8=Q {[%clk 0:00:03]}  Qd4+ {[%clk 0:00:09]} 55. Kg3 {[%clk 0:00:03]}  h4+ {[%clk 0:00:09]} 56. Kh3 {[%clk 0:00:04]}  g5 {[%clk 0:00:10]} 57. Qc7+ {[%clk 0:00:04]}  Kg6 {[%clk 0:00:10]} 58. Qc8 {[%clk 0:00:04]}  Kh6 {[%clk 0:00:10]} 59. Qg4 {[%clk 0:00:05]}  Qf6 {[%clk 0:00:09]} 60. f4 {[%clk 0:00:04]}  Qxf4 {[%clk 0:00:09]} 61. Qxf4 {[%clk 0:00:04]}  gxf4 {[%clk 0:00:10]} 62. Kxh4 {[%clk 0:00:05]}  Kg6 {[%clk 0:00:11]} 63. Kg4 {[%clk 0:00:05]}  f3 {[%clk 0:00:11]} 64. Kxf3 {[%clk 0:00:06]}  Kf6 {[%clk 0:00:12]} 65. Kg3 {[%clk 0:00:07]}  Kg5 {[%clk 0:00:13]} 66. h4+ {[%clk 0:00:08]}  Kh5 {[%clk 0:00:13]} 67. Kh3 {[%clk 0:00:08]}  Kg6 {[%clk 0:00:14]} 68. g4 {[%clk 0:00:09]}  Kh6 {[%clk 0:00:15]} 69. h5 {[%clk 0:00:10]} 1-0


[Site "https://www.chess.com"]

[Event "Titled Tuesday Blitz February 21 Early 2023"]
[White "Nihal Sarin"]
[Black "Martynov, Pavel"]
[WhiteFideId "25092340"]
[BlackFideId "4101260"]
[WhiteElo "2673"]
[BlackElo "2414"]
[Result "1-0"]
[Round "06"]
[TimeControl "180+2"]
[Date "2023.02.21"]
[WhiteClock "0:01:02"]
[BlackClock "0:00:08"]

1. Nf3 {[%clk 0:02:57]}  d5 {[%clk 0:02:58]} 2. d4 {[%clk 0:02:57]}  e6 {[%clk 0:02:58]} 3. Bf4 {[%clk 0:02:58]}  c5 {[%clk 0:02:58]} 4. e3 {[%clk 0:02:59]}  Nc6 {[%clk 0:02:58]} 5. c3 {[%clk 0:02:59]}  Bd6 {[%clk 0:02:59]} 6. Bg3 {[%clk 0:02:59]}  Nf6 {[%clk 0:02:59]} 7. Nbd2 {[%clk 0:03:00]}  Bxg3 {[%clk 0:02:59]} 8. hxg3 {[%clk 0:03:00]}  Qd6 {[%clk 0:03:00]} 9. Bd3 {[%clk 0:02:59]}  e5 {[%clk 0:02:59]} 10. dxc5 {[%clk 0:02:56]}  Qxc5 {[%clk 0:03:00]} 11. e4 {[%clk 0:02:57]}  Be6 {[%clk 0:02:45]} 12. exd5 {[%clk 0:02:50]}  Bxd5 {[%clk 0:02:44]} 13. Qe2 {[%clk 0:02:47]}  O-O-O {[%clk 0:02:38]} 14. Bf5+ {[%clk 0:02:21]}  Kb8 {[%clk 0:02:36]} 15. O-O {[%clk 0:02:21]}  e4 {[%clk 0:02:19]} 16. Nh2 {[%clk 0:02:12]}  g6 {[%clk 0:02:15]} 17. Bh3 {[%clk 0:02:01]}  Rhe8 {[%clk 0:02:03]} 18. Nb3 {[%clk 0:01:52]}  Qc4 {[%clk 0:01:43]} 19. Rfe1 {[%clk 0:01:43]}  e3 {[%clk 0:01:12]} 20. fxe3 {[%clk 0:01:23]}  Qxe2 {[%clk 0:00:56]} 21. Rxe2 {[%clk 0:01:24]}  Bc4 {[%clk 0:00:56]} 22. Ree1 {[%clk 0:01:21]}  Ne5 {[%clk 0:00:52]} 23. Nf3 {[%clk 0:01:18]}  Nd3 {[%clk 0:00:50]} 24. Red1 {[%clk 0:01:17]}  Ne4 {[%clk 0:00:38]} 25. Nfd4 {[%clk 0:01:12]}  Nxb2 {[%clk 0:00:36]} 26. Rdb1 {[%clk 0:01:12]}  Na4 {[%clk 0:00:26]} 27. Na5 {[%clk 0:01:12]}  Ba6 {[%clk 0:00:23]} 28. Nac6+ {[%clk 0:01:11]}  Kc7 {[%clk 0:00:23]} 29. Nxd8 {[%clk 0:01:12]}  Rxd8 {[%clk 0:00:24]} 30. c4 {[%clk 0:01:09]}  Nac3 {[%clk 0:00:18]} 31. Rb4 {[%clk 0:01:07]}  f5 {[%clk 0:00:18]} 32. Ne6+ {[%clk 0:01:06]}  Kd7 {[%clk 0:00:18]} 33. Nxd8 {[%clk 0:01:07]}  Kxd8 {[%clk 0:00:19]} 34. g4 {[%clk 0:01:07]}  Ne2+ {[%clk 0:00:16]} 35. Kh2 {[%clk 0:01:06]}  N2g3 {[%clk 0:00:10]} 36. gxf5 {[%clk 0:01:06]}  gxf5 {[%clk 0:00:10]} 37. c5 {[%clk 0:01:02]}  Kc7 {[%clk 0:00:08]} 38. Bxf5 {[%clk 0:01:02]} 1-0


[Site "https://www.chess.com"]

[Event "Titled Tuesday Blitz February 21 Early 2023"]
[White "Ordekalog"]
[Black "Pranav, V"]
[BlackFideId "25060783"]
[WhiteElo "2560"]
[BlackElo "2597"]
[Result "1-0"]
[Round "06"]
[TimeControl "180+2"]
[Date "2023.02.21"]
[WhiteClock "0:00:28"]
[BlackClock "0:00:53"]

1. e4 {[%clk 0:03:00]}  b6 {[%clk 0:02:59]} 2. d4 {[%clk 0:02:57]}  Bb7 {[%clk 0:02:58]} 3. Bg5 {[%clk 0:02:55]}  Bxe4 {[%clk 0:02:56]} 4. Nc3 {[%clk 0:02:55]}  Bb7 {[%clk 0:02:56]} 5. Nf3 {[%clk 0:02:54]}  Nf6 {[%clk 0:02:47]} 6. Bd3 {[%clk 0:02:51]}  e6 {[%clk 0:02:45]} 7. Qe2 {[%clk 0:02:49]}  Be7 {[%clk 0:02:44]} 8. O-O-O {[%clk 0:02:48]}  Nc6 {[%clk 0:02:42]} 9. h4 {[%clk 0:02:45]}  Nb4 {[%clk 0:02:41]} 10. Bc4 {[%clk 0:02:40]}  h6 {[%clk 0:02:39]} 11. Bxf6 {[%clk 0:02:34]}  Bxf6 {[%clk 0:02:39]} 12. a3 {[%clk 0:02:34]}  Nc6 {[%clk 0:02:39]} 13. d5 {[%clk 0:02:34]}  Bxc3 {[%clk 0:02:34]} 14. dxc6 {[%clk 0:02:34]}  Bxb2+ {[%clk 0:02:26]} 15. Kxb2 {[%clk 0:02:34]}  Bxc6 {[%clk 0:02:27]} 16. Ne5 {[%clk 0:02:26]}  Qf6 {[%clk 0:02:26]} 17. Kb1 {[%clk 0:02:26]}  O-O {[%clk 0:02:26]} 18. Nxd7 {[%clk 0:02:20]}  Bxd7 {[%clk 0:02:26]} 19. Rxd7 {[%clk 0:02:20]}  Rad8 {[%clk 0:02:27]} 20. Rxc7 {[%clk 0:02:14]}  Qf4 {[%clk 0:02:27]} 21. Rc6 {[%clk 0:02:00]}  Rd2 {[%clk 0:02:25]} 22. Qe3 {[%clk 0:01:48]}  Rxf2 {[%clk 0:02:22]} 23. Qxf4 {[%clk 0:01:47]}  Rxf4 {[%clk 0:02:23]} 24. Rc7 {[%clk 0:01:38]}  Rd8 {[%clk 0:02:21]} 25. Bd3 {[%clk 0:01:34]}  Ra4 {[%clk 0:02:11]} 26. Kb2 {[%clk 0:01:32]}  Rf8 {[%clk 0:02:08]} 27. h5 {[%clk 0:01:31]}  Ra5 {[%clk 0:02:07]} 28. Kb3 {[%clk 0:01:29]}  Rd8 {[%clk 0:02:01]} 29. Rf1 {[%clk 0:01:28]}  f6 {[%clk 0:02:01]} 30. Bg6 {[%clk 0:01:26]}  Kf8 {[%clk 0:01:58]} 31. Rf3 {[%clk 0:01:16]}  Rb5+ {[%clk 0:01:52]} 32. Ka2 {[%clk 0:01:15]}  Rg5 {[%clk 0:01:49]} 33. Rxa7 {[%clk 0:01:09]}  Rxg2 {[%clk 0:01:49]} 34. Rc3 {[%clk 0:01:09]}  f5 {[%clk 0:01:44]} 35. Rcc7 {[%clk 0:01:09]}  Kg8 {[%clk 0:01:40]} 36. Rxg7+ {[%clk 0:01:08]}  Kh8 {[%clk 0:01:41]} 37. Rh7+ {[%clk 0:00:58]}  Kg8 {[%clk 0:01:41]} 38. Rhc7 {[%clk 0:00:54]}  f4 {[%clk 0:01:40]} 39. Bf7+ {[%clk 0:00:46]}  Kg7 {[%clk 0:01:39]} 40. Bxe6+ {[%clk 0:00:46]}  Kf6 {[%clk 0:01:40]} 41. Bb3 {[%clk 0:00:45]}  Rf2 {[%clk 0:01:37]} 42. Rc6+ {[%clk 0:00:44]}  Kg5 {[%clk 0:01:35]} 43. Rxb6 {[%clk 0:00:38]}  f3 {[%clk 0:01:28]} 44. Ra5+ {[%clk 0:00:36]}  Kg4 {[%clk 0:01:28]} 45. Rxh6 {[%clk 0:00:35]}  Rh2 {[%clk 0:01:28]} 46. Rg6+ {[%clk 0:00:35]}  Kf4 {[%clk 0:01:29]} 47. Rf6+ {[%clk 0:00:34]}  Ke3 {[%clk 0:01:28]} 48. Re5+ {[%clk 0:00:33]}  Kd4 {[%clk 0:00:59]} 49. Ref5 {[%clk 0:00:33]}  Re8 {[%clk 0:00:56]} 50. Rxf3 {[%clk 0:00:33]}  Re1 {[%clk 0:00:56]} 51. R6f4+ {[%clk 0:00:31]}  Kc5 {[%clk 0:00:56]} 52. Rc4+ {[%clk 0:00:31]}  Kb6 {[%clk 0:00:55]} 53. Rf6+ {[%clk 0:00:30]}  Kb7 {[%clk 0:00:53]} 54. Rg4 {[%clk 0:00:28]} 1-0


[Site "https://www.chess.com"]

[Event "Titled Tuesday Blitz February 21 Early 2023"]
[White "Kramnik, Vladimir"]
[Black "Padmini, Rout"]
[WhiteFideId "4101588"]
[BlackFideId "5029295"]
[WhiteElo "2753"]
[BlackElo "2375"]
[Result "1-0"]
[Round "06"]
[TimeControl "180+2"]
[Date "2023.02.21"]
[WhiteClock "0:01:34"]
[BlackClock "0:00:01"]

1. c4 {[%clk 0:03:00]}  Nf6 {[%clk 0:02:55]} 2. Nc3 {[%clk 0:02:59]}  e5 {[%clk 0:02:42]} 3. Nf3 {[%clk 0:02:59]}  Nc6 {[%clk 0:02:40]} 4. d3 {[%clk 0:02:59]}  d5 {[%clk 0:02:39]} 5. cxd5 {[%clk 0:02:59]}  Nxd5 {[%clk 0:02:39]} 6. e3 {[%clk 0:02:59]}  Be7 {[%clk 0:02:38]} 7. Be2 {[%clk 0:02:59]}  O-O {[%clk 0:02:38]} 8. O-O {[%clk 0:02:59]}  Be6 {[%clk 0:02:35]} 9. a3 {[%clk 0:02:59]}  a5 {[%clk 0:02:32]} 10. Bd2 {[%clk 0:02:59]}  Nb6 {[%clk 0:02:28]} 11. Rc1 {[%clk 0:02:58]}  a4 {[%clk 0:02:26]} 12. Ne4 {[%clk 0:02:58]}  Bb3 {[%clk 0:02:23]} 13. Qe1 {[%clk 0:02:58]}  f6 {[%clk 0:02:17]} 14. Bc3 {[%clk 0:02:48]}  Nd7 {[%clk 0:01:58]} 15. Bd1 {[%clk 0:02:41]}  Bf7 {[%clk 0:01:34]} 16. Bc2 {[%clk 0:02:41]}  Nb6 {[%clk 0:01:29]} 17. Qd1 {[%clk 0:02:36]}  Qd7 {[%clk 0:01:25]} 18. d4 {[%clk 0:02:35]}  exd4 {[%clk 0:01:20]} 19. Nxd4 {[%clk 0:02:35]}  Na5 {[%clk 0:01:11]} 20. Qf3 {[%clk 0:02:17]}  Nd5 {[%clk 0:01:04]} 21. Nf5 {[%clk 0:02:07]}  Nxc3 {[%clk 0:01:04]} 22. Qg4 {[%clk 0:01:54]}  Ne2+ {[%clk 0:00:50]} 23. Kh1 {[%clk 0:01:53]}  Bg6 {[%clk 0:00:03]} 24. Nh6+ {[%clk 0:01:52]}  gxh6 {[%clk 0:00:02]} 25. Qxd7 {[%clk 0:01:52]}  Nxc1 {[%clk 0:00:02]} 26. Qxe7 {[%clk 0:01:46]}  Ncb3 {[%clk 0:00:01]} 27. Nxf6+ {[%clk 0:01:42]}  Rxf6 {[%clk 0:00:01]} 28. Bxb3+ {[%clk 0:01:42]}  Nxb3 {[%clk 0:00:01]} 29. Qxf6 {[%clk 0:01:42]}  Rf8 {[%clk 0:00:01]} 30. Qc3 {[%clk 0:01:38]}  Rf7 {[%clk 0:00:01]} 31. Rd1 {[%clk 0:01:34]} 1-0


[Site "https://www.chess.com"]

[Event "Titled Tuesday Blitz February 21 Early 2023"]
[White "Ingebretsen, Jens E"]
[Black "Harsh Suresh"]
[WhiteFideId "1522965"]
[BlackFideId "45018464"]
[WhiteElo "2342"]
[BlackElo "2298"]
[Result "1/2-1/2"]
[Round "06"]
[TimeControl "180+2"]
[Date "2023.02.21"]
[WhiteClock "0:01:25"]
[BlackClock "0:00:02"]

1. d4 {[%clk 0:02:58]}  Nf6 {[%clk 0:02:59]} 2. c4 {[%clk 0:02:58]}  e6 {[%clk 0:02:58]} 3. Nf3 {[%clk 0:02:59]}  b6 {[%clk 0:02:54]} 4. g3 {[%clk 0:02:57]}  Ba6 {[%clk 0:02:53]} 5. b3 {[%clk 0:02:58]}  Bb4+ {[%clk 0:02:52]} 6. Bd2 {[%clk 0:02:58]}  Be7 {[%clk 0:02:49]} 7. Bg2 {[%clk 0:02:58]}  d5 {[%clk 0:02:46]} 8. O-O {[%clk 0:02:58]}  Bb7 {[%clk 0:02:39]} 9. Ne5 {[%clk 0:02:57]}  O-O {[%clk 0:02:39]} 10. Nc3 {[%clk 0:02:56]}  Nbd7 {[%clk 0:02:36]} 11. Bf4 {[%clk 0:02:56]}  c6 {[%clk 0:02:27]} 12. e4 {[%clk 0:02:54]}  dxe4 {[%clk 0:02:24]} 13. Nxe4 {[%clk 0:02:55]}  Nxe4 {[%clk 0:02:23]} 14. Bxe4 {[%clk 0:02:56]}  Nxe5 {[%clk 0:02:23]} 15. Bxe5 {[%clk 0:02:54]}  Bf6 {[%clk 0:02:21]} 16. Qf3 {[%clk 0:02:47]}  Bxe5 {[%clk 0:02:19]} 17. dxe5 {[%clk 0:02:48]}  Qc7 {[%clk 0:02:19]} 18. Qh5 {[%clk 0:02:47]}  g6 {[%clk 0:02:19]} 19. Qg5 {[%clk 0:02:47]}  Qd8 {[%clk 0:01:36]} 20. Qf4 {[%clk 0:02:33]}  Qe7 {[%clk 0:01:22]} 21. Rfd1 {[%clk 0:02:32]}  c5 {[%clk 0:01:10]} 22. Rd6 {[%clk 0:02:26]}  Bxe4 {[%clk 0:01:08]} 23. Qxe4 {[%clk 0:02:27]}  Rac8 {[%clk 0:01:00]} 24. Rad1 {[%clk 0:02:26]}  Rc7 {[%clk 0:01:00]} 25. h4 {[%clk 0:02:22]}  h5 {[%clk 0:00:59]} 26. f4 {[%clk 0:02:18]}  Kg7 {[%clk 0:00:58]} 27. Kf2 {[%clk 0:02:18]}  Rb8 {[%clk 0:00:56]} 28. a4 {[%clk 0:02:17]}  a6 {[%clk 0:00:55]} 29. Rc6 {[%clk 0:02:14]}  b5 {[%clk 0:00:41]} 30. axb5 {[%clk 0:02:05]}  axb5 {[%clk 0:00:41]} 31. Rdd6 {[%clk 0:02:05]}  bxc4 {[%clk 0:00:36]} 32. Qxc4 {[%clk 0:02:06]}  Rxc6 {[%clk 0:00:18]} 33. Rxc6 {[%clk 0:02:06]}  Qa7 {[%clk 0:00:15]} 34. Qxc5 {[%clk 0:02:03]}  Qa2+ {[%clk 0:00:12]} 35. Qc2 {[%clk 0:02:03]}  Qa3 {[%clk 0:00:07]} 36. Rc3 {[%clk 0:02:02]}  Rd8 {[%clk 0:00:06]} 37. Rd3 {[%clk 0:02:01]}  Qa7+ {[%clk 0:00:05]} 38. Kg2 {[%clk 0:01:55]}  Qb7+ {[%clk 0:00:05]} 39. Rf3 {[%clk 0:01:45]}  Qb4 {[%clk 0:00:03]} 40. Rf2 {[%clk 0:01:42]}  Rd4 {[%clk 0:00:03]} 41. Kh2 {[%clk 0:01:37]}  Qe1 {[%clk 0:00:03]} 42. Qe2 {[%clk 0:01:36]}  Qb1 {[%clk 0:00:02]} 43. Qb2 {[%clk 0:01:31]}  Qd1 {[%clk 0:00:02]} 44. Qc2 {[%clk 0:01:30]}  Qe1 {[%clk 0:00:02]} 45. Re2 {[%clk 0:01:26]}  Qf1 {[%clk 0:00:01]} 46. Rf2 {[%clk 0:01:25]}  Qe1 {[%clk 0:00:02]} 1/2-1/2


[Site "https://www.chess.com"]

[Event "Titled Tuesday Blitz February 21 Early 2023"]
[White "Halkias, Stelios"]
[Black "Kubicka, Anna"]
[WhiteFideId "4201809"]
[BlackFideId "1152254"]
[WhiteElo "2511"]
[BlackElo "2240"]
[Result "1-0"]
[Round "06"]
[TimeControl "180+2"]
[Date "2023.02.21"]
[WhiteClock "0:02:02"]
[BlackClock "0:00:29"]

1. c4 {[%clk 0:03:00]}  e5 {[%clk 0:02:59]} 2. Nc3 {[%clk 0:03:00]}  Nc6 {[%clk 0:02:56]} 3. Nf3 {[%clk 0:02:59]}  g6 {[%clk 0:02:52]} 4. e3 {[%clk 0:02:56]}  Bg7 {[%clk 0:02:52]} 5. d4 {[%clk 0:02:56]}  d6 {[%clk 0:02:47]} 6. Be2 {[%clk 0:02:52]}  f5 {[%clk 0:02:47]} 7. O-O {[%clk 0:02:47]}  e4 {[%clk 0:02:34]} 8. Nd2 {[%clk 0:02:45]}  Nf6 {[%clk 0:02:34]} 9. b4 {[%clk 0:02:44]}  O-O {[%clk 0:02:28]} 10. b5 {[%clk 0:02:44]}  Ne7 {[%clk 0:02:28]} 11. a4 {[%clk 0:02:43]}  a6 {[%clk 0:02:26]} 12. Bb2 {[%clk 0:02:40]}  c6 {[%clk 0:02:18]} 13. Qb3 {[%clk 0:02:37]}  axb5 {[%clk 0:02:10]} 14. axb5 {[%clk 0:02:37]}  Rxa1 {[%clk 0:02:10]} 15. Rxa1 {[%clk 0:02:36]}  d5 {[%clk 0:02:10]} 16. bxc6 {[%clk 0:02:36]}  bxc6 {[%clk 0:02:08]} 17. Ra7 {[%clk 0:02:33]}  Re8 {[%clk 0:01:38]} 18. Ba3 {[%clk 0:02:32]}  Bf8 {[%clk 0:01:33]} 19. h3 {[%clk 0:02:29]}  Be6 {[%clk 0:01:27]} 20. cxd5 {[%clk 0:02:28]}  Bxd5 {[%clk 0:01:23]} 21. Nxd5 {[%clk 0:02:26]}  cxd5 {[%clk 0:01:20]} 22. Bb5 {[%clk 0:02:09]}  Qb8 {[%clk 0:01:07]} 23. Qa4 {[%clk 0:02:09]}  Rc8 {[%clk 0:00:29]} 24. Bxe7 {[%clk 0:02:02]}  Rc1+ {[%clk 0:00:29]} 25. Nf1 {[%clk 0:02:02]} 1-0


[Site "https://www.chess.com"]